{"text_format":"1","workbook":"xlsx","n_sheets":2,"sheets":["Anleitung","Lehrplan betriebliche Ausbildun"],"not_rendered":{"charts":0,"images":4,"macros":1,"external_links":0,"defined_names":4,"comments":0,"pivot_tables":0},"unopened":[],"bounds":{"document_bytes":16777216,"sheet_cells":100000,"rows_first":2000,"rows_last":500,"rows_between":2000,"halvings":0,"cell_chars":16384,"cell_head_chars":4096},"cells_cut":0,"cells_raw":0,"read":"whole","date_system":"1900"}

{"sheet":"Anleitung","index":0,"n_rows":0,"n_cols":0,"rows_kept":0,"cut":false,"hidden":false,"merged":[]}

{"sheet":"Lehrplan betriebliche Ausbildun","index":1,"n_rows":206,"n_cols":21,"rows_kept":206,"cut":false,"hidden":false,"merged":[]}
[]
[null,null,"Lehrplan betriebliche Ausbildung"]
[null,null,"inklusive begleitende Massnahmen der Arbeitssicherheit und des Gesundheitsschutzes"]
[null,null,"Ariane Exemple"]
[null,null,"20. Juli 2014 bis 19. Juli 2018"]
[null,null,"Berufsbildner: Felix Muster"]
[]
[null,"Leistungsziele aus dem Bildungsplan","mögliche Tätigkeiten","Fachrichtung","Fachrichtung","Fachrichtung","Fachrichtung","Einführung\nDatum/Visum","Erfüllt\nDatum/Visum","Semester","Semester","Lehrjahr","Semester","Semester","Lehrjahr","Semester","Semester","Lehrjahr","Semester","Semester","Lehrjahr"]
[null,null,null,"M I","BF","WA","SK",null,null,"1.","2.","1.","3.","4.","2.","5.","6.","3","7.","8.","4."]
[]
[null,"1. Vorbereiten und Planen","1. Vorbereiten und Planen","x","x","x","x",null,null,"x","x","x","x","x","x","x","x","x","x","x","x"]
[null,"1.1 Masse aufnehmen","1.1 Masse aufnehmen","x","x","x","x",null,null,null,null,null,"x","x",null,"x","x",null,"x","x"]
[null,"1.1.1 Sie wenden die betriebsüblichen Werkzeuge zur Massaufnahme an (z.B. Laser, Winkel, Schieblehre). ","- betriebsübliche Werkzeuge zur Massaufnahme benutzen","x","x","x","x","2014-09-15","2014-10-15",null,null,{"$f":"IF(AND(J13=\"\",K13=\"\"),\"\",\"x\")","v":""},"x","x",{"$f":"IF(AND(M13=\"\",N13=\"\"),\"\",\"x\")","v":"x"},"x","x",{"$f":"IF(AND(P13=\"\",Q13=\"\"),\"\",\"x\")","v":"x"},"x","x",{"$f":"IF(AND(S13=\"\",T13=\"\"),\"\",\"x\")","v":"x"}]
[null,"1.1.2 Sie erstellen einfache Massaufnahmen mit Skizzen. ","- beim Kunden oder auf der Baustelle einfache Massaufnahmen tätigen","x","x","x","x",null,null,null,null,{"$f":"IF(AND(J14=\"\",K14=\"\"),\"\",\"x\")","v":""},"x","x",{"$f":"IF(AND(M14=\"\",N14=\"\"),\"\",\"x\")","v":"x"},"x","x",{"$f":"IF(AND(P14=\"\",Q14=\"\"),\"\",\"x\")","v":"x"},"x","x",{"$f":"IF(AND(S14=\"\",T14=\"\"),\"\",\"x\")","v":"x"}]
[null,"1.1.3 Sie wenden betriebsübliche Normmasse und vorgegebene Masse/Dimensionen an. ","- Normmasse anwenden und Masse/Dimensionen einhalten","x","x","x","x",null,null,null,null,"","x","x","x","x","x","x","x","x","x"]
[null,"1.2 Pläne erstellen und lesen","1.2 Pläne erstellen und lesen","x","x","x","x",null,null,"x","x","x","x","x","x","x","x","x","x","x","x"]
[null,"1.2.1 Sie setzen Konstruktionen um. ","- einfache Pläne lesen \n- Fragmente reissen\n- betriebsspezifische Konstruktionsdetails umsetzen (Eck- und Plattenverbindungen, Sockel usw.)","x","x","x","x",null,null,"x","x",{"$f":"IF(AND(J17=\"\",K17=\"\"),\"\",\"x\")","v":"x"},"x","x",{"$f":"IF(AND(M17=\"\",N17=\"\"),\"\",\"x\")","v":"x"},"x","x",{"$f":"IF(AND(P17=\"\",Q17=\"\"),\"\",\"x\")","v":"x"},"x","x",{"$f":"IF(AND(S17=\"\",T17=\"\"),\"\",\"x\")","v":"x"}]
[null,"1.2.2 Sie setzen die Gestaltung von Schreinerarbeiten um.","- einfache Konstruktionsskizzen erstellen","x","x","x","x",null,null,null,null,"","x","x","x","x","x","x","x","x","x"]
[null,"1.2.3 Sie setzen betriebsübliche Werkzeichnungen um.","- Schreinerarbeiten nach Plan umsetzen","x","x","x","x",null,null,"x","x","x","x","x","x","x","x","x","x","x","x"]
[null,"1.2.4 Sie wenden die bauphysikalischen Grundsätze im Brand-, Schall-, Wärme- und Feuchteschutz an.","- bauphysikalischer Grundsätze (Brand-, Wärme-, Feuchteschutz) gemäss Werkplan umsetzen",null,"x",null,null,null,null,null,null,"",null,null,"",null,"x","x","x","x","x"]
[null,"1.2.5 Sie wenden die im Bauwesen relevanten Normen, Vorschriften und nachhaltigen Qualitätsstandards an. ","- im Bauwesen relevante Normen gemäss Werkplan anwenden","x","x",null,null,null,null,null,null,"",null,null,"","x","x","x","x","x","x"]
[null,"1.3 Materiallisten erstellen","1.3 Materiallisten erstellen","x","x","x","x",null,null,null,"x","x","x","x","x","x","x","x","x","x","x"]
[null,"1.3.1 Sie erstellen betriebsübliche Werkstofflisten (Skibau: Rüst- und Aufbaulisten). ","- Werkstofflisten von einfachen, selbstständig auszuführenden Arbeiten erstellen","x","x","x","x",null,null,null,"x",{"$f":"IF(AND(J23=\"\",K23=\"\"),\"\",\"x\")","v":"x"},"x","x",{"$f":"IF(AND(M23=\"\",N23=\"\"),\"\",\"x\")","v":"x"},"x","x",{"$f":"IF(AND(P23=\"\",Q23=\"\"),\"\",\"x\")","v":"x"},"x","x",{"$f":"IF(AND(S23=\"\",T23=\"\"),\"\",\"x\")","v":"x"}]
[null,"1.3.2 Sie erstellen betriebsübliche Listen (z.B. Beschlägeliste, Montageliste, Glasliste etc.). ","- für selbstständig auszuführende Arbeiten Beschlägeliste erstellen","x","x","x","x",null,null,null,"x","x","x","x","x","x","x","x","x","x","x"]
[null,"1.4 Interne Arbeitsdokumente erstellen","1.4 Interne Arbeitsdokumente erstellen","x","x","x","x",null,null,"x","x",{"$f":"IF(OR(J25=\"\",K25=\"\"),\"\",\"x\")","v":"x"},"x","x",{"$f":"IF(OR(M25=\"\",N25=\"\"),\"\",\"x\")","v":"x"},"x","x",{"$f":"IF(OR(P25=\"\",Q25=\"\"),\"\",\"x\")","v":"x"},"x","x",{"$f":"IF(OR(S25=\"\",T25=\"\"),\"\",\"x\")","v":"x"}]
[null,"1.4.1 Sie füllen betriebsübliche Zeit- und Regierapporte aus. ","- Zeitrapport selbstständig ausfüllen","x","x","x","x",null,null,"x","x",{"$f":"IF(AND(J26=\"\",K26=\"\"),\"\",\"x\")","v":"x"},"x","x",{"$f":"IF(AND(M26=\"\",N26=\"\"),\"\",\"x\")","v":"x"},"x","x",{"$f":"IF(AND(P26=\"\",Q26=\"\"),\"\",\"x\")","v":"x"},"x","x",{"$f":"IF(AND(S26=\"\",T26=\"\"),\"\",\"x\")","v":"x"}]
[null,"1.4.2 Sie zeigen ihre betriebliche Ausbildung und die dabei gewonnenen Erkenntnisse in einer Lerndokumentation auf. ","- Fotos, Notizen für die Lerndokumentation erstellen\n- Anzahl der Lerndokumentationen pro Semester und Abgabetermine einhalten","x","x","x","x",null,null,"x","x","x","x","x","x","x","x","x","x","x","x"]
[null,"1.4.3 Sie schätzen bei ihren eigenen Arbeiten ihre Kosteneffizienz richtig ein. ","- kosteneffizient arbeiten","x","x","x","x",null,null,null,null,"",null,null,"",null,null,"","x","x","x"]
[null,"1.5 Produktionsmittel wählen und vorbereiten","1.5 Produktionsmittel wählen und vorbereiten","x","x","x","x",null,null,"x","x","x","x","x","x","x","x","x","x","x","x"]
[null,"1.5.1 Sie wählen für den jeweiligen Arbeitsgang das geeignete Produktionsmittel. ","- richtige Werkzeuge für die Montage bereitstellen\n- bei einfachen, selbstständig ausgeführten Arbeiten das richtige Werkzeug wählen","x","x","x","x",null,null,"x","x",{"$f":"IF(AND(J30=\"\",K30=\"\"),\"\",\"x\")","v":"x"},"x","x",{"$f":"IF(AND(M30=\"\",N30=\"\"),\"\",\"x\")","v":"x"},"x","x",{"$f":"IF(AND(P30=\"\",Q30=\"\"),\"\",\"x\")","v":"x"},"x","x",{"$f":"IF(AND(S30=\"\",T30=\"\"),\"\",\"x\")","v":"x"}]
[null,"1.5.2 Sie bereiten die Maschinen/Kleinmaschinen unter Berücksichtigung von Sicherheit, Qualität und Effizienz vor. ","- Kleinmaschinen und Maschinen für Arbeiten im Betrieb und auf Montage vorbereiten/einstellen\n- Arbeitssicherheit und Gesundheitsschutz (Staubmasken, Gehörschutz usw.) je nach Maschine anwenden","x","x","x","x",null,null,null,"x","x","x","x","x","x","x","x","x","x","x"]
[null,"1.5.3 Sie wenden die Werkzeuge unter Berücksichtigung der zu verarbeitenden Materialien, der Arbeitssicherheit und des Gesundheitsschutzes an. ","- Werkzeuge dem Material angepasst auswählen\n- Arbeitssicherheit und Gesundheitsschutz (Staubmasken, Gehörschutz usw.) je nach Werkzeug anwenden","x","x","x","x",null,null,"x","x","x","x","x","x","x","x","x","x","x","x"]
[null,"1.6 Produktionsmittel warten","1.6 Produktionsmittel warten","x","x","x","x",null,null,"x","x","x","x","x","x","x","x","x","x","x","x"]
[null,"1.6.1 Sie pflegen stationäre Maschinen und Werkzeuge unter Berücksichtigung der Bedienungs- sowie der betriebsüblichen Anleitungen fach - und umweltgerecht. ","- stationäre Maschinen reinigen, pflegen\n- Werkzeuge pflegen\n- Bedienungsanleitungen und Umweltschutz berücksichtigen","x","x","x","x",null,null,null,"x",{"$f":"IF(AND(J34=\"\",K34=\"\"),\"\",\"x\")","v":"x"},"x","x",{"$f":"IF(AND(M34=\"\",N34=\"\"),\"\",\"x\")","v":"x"},"x","x",{"$f":"IF(AND(P34=\"\",Q34=\"\"),\"\",\"x\")","v":"x"},"x","x",{"$f":"IF(AND(S34=\"\",T34=\"\"),\"\",\"x\")","v":"x"}]
[null,"1.6.2 Sie halten Kleinmaschinen und Werkzeuge unter Berücksichtigung der Bedienungs- sowie der betriebsüblichen Anleitungen umweltgerecht instand. ","- Handmaschinen und Werkzeuge warten","x","x","x","x",null,null,null,"x","x","x","x","x","x","x","x","x","x","x"]
[null,"1.6.3 Sie halten ihren persönlichen Arbeitsplatz und ihre Handwerkzeuge sauber und instand. ","- Arbeitsplatz aufräumen, reinigen\n- Stechbeitel, Hobelmesser usw. schärfen","x","x","x","x",null,null,"x","x","x","x","x","x","x","x","x","x","x","x"]
[null,"1.7 Materialeingang kontrollieren und Lieferungen vorbereiten","1.7 Materialeingang kontrollieren und Lieferungen vorbereiten","x","x","x","x",null,null,null,null,null,null,"x",null,"x","x",null,"x","x"]
[null,"1.7.1 Sie überprüfen die eingegangenen Waren anhand von Lieferschein, Menge und Qualität. ","- Material und Beschläge anhand von Lieferscheinen kontrollieren","x","x","x","x",null,null,null,null,{"$f":"IF(AND(J38=\"\",K38=\"\"),\"\",\"x\")","v":""},null,"x",{"$f":"IF(AND(M38=\"\",N38=\"\"),\"\",\"x\")","v":"x"},"x","x",{"$f":"IF(AND(P38=\"\",Q38=\"\"),\"\",\"x\")","v":"x"},"x","x",{"$f":"IF(AND(S38=\"\",T38=\"\"),\"\",\"x\")","v":"x"}]
[null,"1.7.2 Sie bereiten produktbezogen und unter Berücksichtigung der Arbeitssicherheit und des Gesundheitsschutzes Lieferungen vor. ","- Lieferungen vorbereiten\n- Produkte fachgerecht einpacken\n- Transportmittel vorbereiten und Ladung sichern\n- Gesundheitsschutz einhalten","x","x","x","x",null,null,null,null,"",null,null,"","x","x","x","x","x","x"]
[null,"2 Herstellen von Produkten","2. Herstellen von Produkten","x","x","x","x",null,null,"x","x","x","x","x","x","x","x","x","x","x","x"]
[null,"2.1 Massivholz bearbeiten","2.1 Massivholz bearbeiten","x","x","x","x",null,null,"x","x","x","x","x","x","x","x","x","x","x","x"]
[null,"2.1.1 Sie wählen die Holzarten dem Verwendungszweck entsprechend. ","- Massivholzarten im Betrieb kennen\n- Holz für selbstständige Arbeiten nach Verwendungszweck aussuchen","x","x","x","x",null,null,null,"x",{"$f":"IF(AND(J42=\"\",K42=\"\"),\"\",\"x\")","v":"x"},"x","x",{"$f":"IF(AND(M42=\"\",N42=\"\"),\"\",\"x\")","v":"x"},"x","x",{"$f":"IF(AND(P42=\"\",Q42=\"\"),\"\",\"x\")","v":"x"},"x","x",{"$f":"IF(AND(S42=\"\",T42=\"\"),\"\",\"x\")","v":"x"}]
[null,"2.1.2 Sie verwenden die Holzeinschnittarten auftragsgemäss. ","- Massivholz rüsten","x","x","x",null,null,null,"x","x","x","x","x","x","x","x","x","x","x","x"]
[null,"2.1.3 Sie verwenden die Holzarten unter Berücksichtigung der Holzfehler/Schädlinge. ","- von Holzschädlingen befallenes Holz erkennen","x","x","x",null,null,null,"x","x","x","x","x","x","x","x","x","x","x","x"]
[null,"2.1.4 Sie ordnen die Holzfeuchtigkeit und Trocknungsfehler in Bezug auf die Produktion und den Bestimmungsort des Produktes zu. ","- beim Zuschnitt von Massivholz Holzfeuchtigkeit und Trocknungsfehler beachten","x","x","x","x",null,null,null,"x","x","x","x","x","x","x","x","x","x","x"]
[null,"2.1.5 Sie schätzen das Verformungsrisiko ab. ","- beim Zuschnitt von Massivholz das Verformungsrisiko beachten","x","x","x","x",null,null,"x","x","x","x","x","x","x","x","x","x","x","x"]
[null,"2.1.6 Sie wählen Transportmittel und Lagermöglichkeiten unter Berücksichtigung fachgerechter Lagerung, der Arbeitssicherheit und des Gesundheitsschutzes. ","- Material fachgerecht lagern, transportieren\n- Arbeitssicherheit und Gesundheitsschutz einhalten","x","x","x","x",null,null,null,null,"",null,null,"","x","x","x","x","x","x"]
[null,"2.1.7 Sie wenden die betriebsüblichen Maschinen und Arbeitstechniken zum Zuschneiden sicher und effizient an. ","- Massivholz selbstständig sicher und effizient zuschneiden","x","x","x","x",null,null,"x","x","x","x","x","x","x","x","x","x","x","x"]
[null,"2.1.8 Sie wenden die betriebsüblichen Maschinen und Arbeitstechniken zum Hobeln  sicher und effizient an. ","- Massivholz selbstständig sicher und effizient hobeln","x","x","x","x",null,null,"x","x","x","x","x","x","x","x","x","x","x","x"]
[null,"2.1.9 Sie wenden die betriebsüblichen Maschinen und Arbeitstechniken sicher und effizient an. ","- betriebsübliche Maschinen und Arbeitstechniken sicher und effizient anwenden ","x","x","x","x",null,null,null,null,"",null,"x","x","x","x","x","x","x","x"]
[null,"2.1.10 Sie wenden verschiedene Handwerkzeuge zweckentsprechend an. ","- die persönlichen Handwerkzeuge kennen, anwenden","x","x","x","x",null,null,"x","x","x","x","x","x","x","x","x","x","x","x"]
[null,"2.1.11 Sie wählen die entsprechenden Klebstoffe aus und verwenden diese gemäss Herstellervorgaben (technische Merk- sowie Sicherheitsdatenblätter). ","- geeigneten Leim gemäss Datenblatt des Herstellers auswählen und anwenden","x","x","x","x",null,null,null,"x","x","x","x","x","x","x","x","x","x","x"]
[null,"2.1.12 Sie wenden effiziente Spannverfahren an (z.B. Rahmenpresse, Leimständer, Handzwingen). ","- Werkteile verleimen (mit Handzwingen, auf dem Leimständer usw.)\n- Kanten/Einleimer anleimen","x","x","x","x",null,null,null,"x","x","x","x","x","x","x","x","x","x","x"]
[null,"2.1.13 Sie wenden die persönliche Schutzausrüstungen und die Schutzvorrichtungen konsequent und korrekt an. ","- persönliche Schutzausrüstung und Schutzvorrichtungen anwenden","x","x","x","x",null,null,"x","x","x","x","x","x","x","x","x","x","x","x"]
[null,"2.1.14 Sie vermeiden, vermindern, recyceln und entsorgen Abfälle gemäss Vorschriften und betriebsüblichen Regeln. ","- Abfälle vermeiden, fachgerecht entsorgen","x","x","x","x",null,null,"x","x","x","x","x","x","x","x","x","x","x","x"]
[null,"2.1.15 Sie wenden die Drehbank für einfache Drechslerarbeiten sicher und effizient an.","- einfache Drechslerarbeiten sicher ausführen",null,null,"x",null,null,null,null,null,"",null,"x","x","x","x","x","x","x","x"]
[null,"2.1.16 Sie wenden die entsprechende Technik von Hand oder maschinell für das Biegen von Holz an (z.B. Landen, Kufen, Felgen).","- Werkteile (Kufen, Felgen usw.) biegen",null,null,"x",null,null,null,null,null,"",null,"x","x","x","x","x","x","x","x"]
[null,"2.2 Andere Werkstoffe einsetzen","2.2 Andere Werkstoffe einsetzen","x","x","x","x",null,null,null,"x","x","x","x","x","x","x","x","x","x","x"]
[null,"2.2.1 Sie wenden dem Auftrag entsprechende Holzwerkstoffe (z.B. Spanplatten, MDF, Faserplatten) unter berücksichtigung ökologischer Aspekte an. ","- Holzwerkstoffe (Spanplatten, MDF, Kunstharzplatten usw.) verarbeiten","x","x","x",null,null,null,null,"x",{"$f":"IF(AND(J59=\"\",K59=\"\"),\"\",\"x\")","v":"x"},"x","x",{"$f":"IF(AND(M59=\"\",N59=\"\"),\"\",\"x\")","v":"x"},"x","x",{"$f":"IF(AND(P59=\"\",Q59=\"\"),\"\",\"x\")","v":"x"},"x","x",{"$f":"IF(AND(S59=\"\",T59=\"\"),\"\",\"x\")","v":"x"}]
[null,"2.2.2 Sie wenden dem Auftrag entsprechende Baustoffe an (z.B. Metall, Kunststoff, Glas, mineralische Werkstoffe). ","- Glas, Metall, Kunststoffe verarbeiten","x","x","x","x",null,null,null,"x","x","x","x","x","x","x","x","x","x","x"]
[null,"2.2.3 Sie wenden dem Auftrag entsprechend konventionelle und nachhaltige Dämm- und Dichtstoffe gemäss den Verarbeitungsrichtlinien (technische Merk-sowie Sicherheitsdatenblätter) an.","- Dämmstoffeverarbeiten\n- Dichtstoffe verarbeiten","x","x","x",null,null,null,null,null,"",null,null,"","x","x","x","x","x","x"]
[null,"2.2.4 Sie wenden die dem Auftrag und den Anforderungen entsprechenden Halbfabrikate an. ","- Halbfabrikate verarbeiten","x","x","x","x",null,null,null,null,"",null,"x","x","x","x","x","x","x","x"]
[null,"2.2.5 Sie wenden die Herstellervorschriften bei der Lagerung von Bau- und Werkstoffen korrekt an, unter Berücksichtigung von Ordnung und Übersicht. ","- Herstellervorschriften zur Lagerung von Werkstoffen anwenden\n- Werkstoffe sauber und ordentlich lagern","x","x","x","x",null,null,null,null,"","x","x","x","x","x","x","x","x","x"]
[null,"2.2.6 Sie wenden die persönliche Schutzausrüstung und die Schutzvorrichtungen konsequent und korrekt an. ","- persönliche Schutzausrüstung und Schutzvorrichtungen anwenden","x","x","x","x",null,null,null,"x","x","x","x","x","x","x","x","x","x","x"]
[null,"2.2.7 Sie vermeiden, vermindern, recyceln und entsorgen Abfälle gemäss Vorschriften und  betriebsüblichen Regeln. ","- Abfälle vermeiden, fachgerecht entsorgen","x","x","x","x",null,null,null,"x","x","x","x","x","x","x","x","x","x","x"]
[null,"2.3 Materialien belegen","2.3 Materialien belegen","x","x","x","x",null,null,null,"x","x","x","x","x","x","x","x","x","x","x"]
[null,"2.3.1 Sie wenden die verschiedenen Vorbereitungstechniken an (z.B. Kalibrieren, Vorbehandlungen). ","- Werkstücke kalibrieren","x","x","x","x",null,null,null,"x",{"$f":"IF(AND(J67=\"\",K67=\"\"),\"\",\"x\")","v":"x"},"x","x",{"$f":"IF(AND(M67=\"\",N67=\"\"),\"\",\"x\")","v":"x"},"x","x",{"$f":"IF(AND(P67=\"\",Q67=\"\"),\"\",\"x\")","v":"x"},"x","x",{"$f":"IF(AND(S67=\"\",T67=\"\"),\"\",\"x\")","v":"x"}]
[null,"2.3.2 Sie schneiden das Belagsmaterial (z.B. Kunstharzplatten, Alu, Kunststoffe) dem Material und Verwendungszweck entsprechend zu. ","- Belagsmaterialien zuschneiden","x","x","x","x",null,null,null,"x","x","x","x","x","x","x","x","x","x","x"]
[null,"2.3.3 Sie wenden die Herstellervorschriften bei der Lagerung von Bau- und Werkstoffen korrekt unter Berücksichtigung von Ordnung und Übersicht an. ","- Herstellervorschriften zur Lagerung von Werkstoffen anwenden","x","x","x","x",null,null,null,"x","x","x","x","x","x","x","x","x","x","x"]
[null,"2.3.4 Sie wenden die entsprechenden Klebstoffe unter Berücksichtigung der Herstellervorgaben (technische Merk- sowie Sicherheitsdatenblätter) an. ","- geeigneten Leim gemäss Datenblatt des Herstellers auswählen und fachgerecht anwenden","x","x","x","x",null,null,null,"x","x","x","x","x","x","x","x","x","x","x"]
[null,"2.3.5 Sie wenden die erforderlichen Pressverfahren materialgerecht an. ","- Furnierpresse anwenden\n- andere Verfahren zum Belegen von Werkstoffen anwenden ","x","x","x","x",null,null,null,"x","x","x","x","x","x","x","x","x","x","x"]
[null,"2.3.6 Sie wenden die persönlichen Schutzausrüstungen und die Schutzvorrichtungen konsequent und korrekt an. ","- persönliche Schutzausrüstung und Schutzvorrichtungen anwenden","x","x","x","x",null,null,null,"x","x","x","x","x","x","x","x","x","x","x"]
[null,"2.3.7 Sie vermeiden, vermindern, recyceln und entsorgen Abfälle gemäss Vorschriften und betriebsüblichen Regeln. ","- Abfälle vermeiden, fachgerecht entsorgen","x","x","x","x",null,null,null,"x","x","x","x","x","x","x","x","x","x","x"]
[null,"2.4 Werkteile zusammenbauen","2.4 Werkteile zusammenbauen","x","x","x","x",null,null,"x","x","x","x","x","x","x","x","x","x","x","x"]
[null,"2.4.1 Sie beschreiben die Anforderungen an die Werkteile. ","- Anforderungen an die zu bearbeitenden Werkteile kennen","x","x","x","x",null,null,"x","x",{"$f":"IF(AND(J75=\"\",K75=\"\"),\"\",\"x\")","v":"x"},"x","x",{"$f":"IF(AND(M75=\"\",N75=\"\"),\"\",\"x\")","v":"x"},"x","x",{"$f":"IF(AND(P75=\"\",Q75=\"\"),\"\",\"x\")","v":"x"},"x","x",{"$f":"IF(AND(S75=\"\",T75=\"\"),\"\",\"x\")","v":"x"}]
[null,"2.4.2 Sie wenden die betriebsüblichen Verbindungstechniken an (z.B. Dübel, Schlitzen, Federn). ","- Verbindungen (Dübel, Zapfen, Federn usw.) anwenden","x","x","x","x",null,null,"x","x","x","x","x","x","x","x","x","x","x","x"]
[null,"2.4.3 Sie wenden Handmaschinen sicher und effizient an. ","- Handmaschinen (Oberfräse, Stichsäge usw.) sicher und effizient anwenden\n","x","x","x","x",null,null,null,"x","x","x","x","x","x","x","x","x","x","x"]
[null,"2.4.4 Sie wenden stationäre Maschinen (z.B. Bohrautomat, Ständerbohrmaschine, CNC-Bearbeitungszentrum) energieeffizient, lärmschonend, sicher und effizient an. ","- stationäre Maschinen (Ständerbohrmaschine, Kreis-, Bandsäge, Hobelmaschine usw., nach erfolgter Einführung im üK) bedienen\n- mit Bandsäge/Kehlmaschine stemmen, schlitzen\n- Fälze, Nuten und abgesetzte Kehlungen mit Kehlmaschine herstellen","x","x","x","x",null,null,null,"x","x","x","x","x","x","x","x","x","x","x"]
[null,"2.4.5 Sie wählen unter Berücksichtigung ökologischer Aspekte die geeigneten Klebstoffe aus und verwenden diese gemäss Herstellervorgaben (technische Merk- sowie Sicherheitsdatenblätter). ","- geeigneten Leim gemäss Datenblatt des Herstellers auswählen und fachgerecht anwenden","x","x","x","x",null,null,null,"x","x","x","x","x","x","x","x","x","x","x"]
[null,"2.4.6 Sie wenden verschiedene, effiziente Spannverfahren an (z.B. Rahmenpresse, Durchlaufpresse, Korpuspresse, Handzwingen). ","- effiziente Spannverfahren (Rahmen-, Korpuspresse, Handzwingen usw.) einsetzen","x","x","x","x",null,null,null,"x","x","x","x","x","x","x","x","x","x","x"]
[null,"2.4.7 Sie wenden die persönliche Schutzausrüstung und die Schutzvorrichtungen konsequent und korrekt an. ","- persönliche Schutzausrüstung und Schutzvorrichtungen anwenden","x","x","x","x",null,null,null,"x","x","x","x","x","x","x","x","x","x","x"]
[null,"2.5 Beschläge anbringen","2.5 Beschläge anbringen","x","x","x","x",null,null,null,null,null,"x","x",null,"x","x",null,"x","x"]
[null,"2.5.1 Sie wählen die Beschläge aufgrund von Listen. ","- Beschläge gemäss Liste auswählen","x","x","x",null,null,null,null,null,{"$f":"IF(AND(J83=\"\",K83=\"\"),\"\",\"x\")","v":""},"x","x",{"$f":"IF(AND(M83=\"\",N83=\"\"),\"\",\"x\")","v":"x"},"x","x",{"$f":"IF(AND(P83=\"\",Q83=\"\"),\"\",\"x\")","v":"x"},"x","x",{"$f":"IF(AND(S83=\"\",T83=\"\"),\"\",\"x\")","v":"x"}]
[null,"2.5.2 Sie montieren die Beschläge gemäss den Herstellervorgaben, Planvorgaben und betriebsüblichen Normen und beachten dabei die Arbeitssicherheit und den Gesundheitsschutz. ","- Beschläge gemäss Hersteller-, Planvorgaben fachgerecht montieren\n- Arbeitssicherheit einhalten","x","x","x",null,null,null,null,null,"","x","x","x","x","x","x","x","x","x"]
[null,"2.5.3 Sie wenden die Einbauvorschriften und die Verarbeitungsrichtlinien an. ","- Einbauvorschriften beachten und einhalten","x","x","x",null,null,null,null,null,"","x","x","x","x","x","x","x","x","x"]
[null,"2.5.4 Sie wenden die Dichtungen gemäss Verarbeitungsrichtlinien an. ","- Dichtungen fachgerecht einbauen","x","x",null,null,null,null,null,null,"","x","x","x","x","x","x","x","x","x"]
[null,"2.5.5 Sie wenden die betrieblichen Maschinen zum Einsetzen der Beschläge an (z.B. Einpressautomaten, Reihenbohrmaschine, CNC-Bearbeitungszentrum) und beachten dabei die Arbeitssicherheit und den Gesundheitsschutz. ","- Maschinen, die zum Einsetzen von Beschlägen geeignet sind, bedienen","x","x","x",null,null,null,null,null,"",null,"x","x","x","x","x","x","x","x"]
[null,"2.5.6 Sie wenden handgeschmiedete, stilgerechte Beschläge an, evtl. unter Beihilfe des Schmiedes.","- handgeschmiedete Beschläge (evtl. unter Mithilfe des Schmiedes) montieren",null,null,"x",null,null,null,null,null,"",null,null,"","x","x","x","x","x","x"]
[null,"2.6 Oberfläche behandeln","2.6 Oberfläche behandeln","x","x","x","x",null,null,null,null,null,null,null,null,null,"x",null,"x","x"]
[null,"2.6.1 Sie wenden die Produkte (z.B. Lacke, Öle) dem Verwendungszweck sowie den Verarbeitungsrichtlinien (technische Merk- sowie Sicherheitsdatenblätter) und der Umweltverträglichkeit entsprechend an. ","- technische Merkblätter verstehen und anwenden\n- Lacke, Öle fachgerecht einsetzen","x","x","x","x",null,null,null,null,{"$f":"IF(AND(J90=\"\",K90=\"\"),\"\",\"x\")","v":""},null,null,{"$f":"IF(AND(M90=\"\",N90=\"\"),\"\",\"x\")","v":""},null,"x",{"$f":"IF(AND(P90=\"\",Q90=\"\"),\"\",\"x\")","v":"x"},"x","x",{"$f":"IF(AND(S90=\"\",T90=\"\"),\"\",\"x\")","v":"x"}]
[null,"2.6.2 Sie wenden dem Endprodukt entsprechende Arbeitsgänge an. ","- Oberflächen Schleifen, Bürsten, Seifen, Egalisieren, Wässern, Bleichen usw.","x","x","x","x",null,null,null,null,"",null,null,"",null,"x","x","x","x","x"]
[null,"2.6.4 Sie wenden betriebsübliche Applikationen an (z.B. Spritzen, Rollen, Streichen, Giessen). ","- unterschiedliche Auftragsarten (Spritzen, Rollen, Streichen, Giessen usw.) anwenden","x","x","x","x",null,null,null,null,"",null,null,"",null,"x","x","x","x","x"]
[null,"2.6.6 Sie wenden die persönliche Schutzausrüstung und die Schutzvorrichtungen konsequent und korrekt an. ","- persönliche Schutzausrüstung und Schutzvorrichtungen (Atemschutz-, Feinstaubmaske, Handschuhe usw.) anwenden","x","x","x","x",null,null,null,null,"",null,null,"",null,"x","x","x","x","x"]
[null,"2.6.7 Sie vermeiden, vermindern, recyceln und entsorgen Abfälle gemäss Vorschriften und betriebsüblichen Regeln. ","- Lacke, Öle usw. fachgerecht recyceln, entsorgen","x","x","x","x",null,null,null,null,"",null,null,"",null,"x","x","x","x","x"]
[null,"3 Herstellen von Produkten spezifisch für den Innenbereich","3 Herstellen von Produkten spezifisch für den Innenbereich","x",null,null,null,null,null,null,null,null,null,null,null,null,"x",null,"x","x"]
[null,"3.1 Andere Werkstoffe einsetzen","3.1 Andere Werkstoffe einsetzen","x",null,null,null,null,null,null,null,null,null,null,null,null,"x",null,"x","x"]
[null,"3.1.1 Sie wenden die dem Auftrag und den Anforderungen entsprechenden Halbfabrikate an (z.B. Innentüren, Glas-, Metallprodukte, Arbeitsplatten). Dabei berücksichtigen sie die Arbeitssicherheit und den Gesundheitsschutz. ","- Halbfabrikate (Innentüren, Glas-, Metallprodukte usw.) verarbeiten","x",null,null,null,null,null,null,null,{"$f":"IF(AND(J97=\"\",K97=\"\"),\"\",\"x\")","v":""},null,null,{"$f":"IF(AND(M97=\"\",N97=\"\"),\"\",\"x\")","v":""},null,"x",{"$f":"IF(AND(P97=\"\",Q97=\"\"),\"\",\"x\")","v":"x"},"x","x",{"$f":"IF(AND(S97=\"\",T97=\"\"),\"\",\"x\")","v":"x"}]
[null,"3.2 Materialien belegen","3.2 Materialien belegen","x",null,"x",null,null,null,null,null,null,null,null,null,"x","x",null,"x","x"]
[null,"3.2.1 Sie wenden den Furnier dem Verwendungszweck entsprechend an, schneiden ihn zu und fügen ihn zusammen. Dabei berücksichtigen sie die Arbeitssicherheit und den Gesundheitsschutz. ","- Furnier zuschneiden, zusammensetzen","x",null,null,null,null,null,null,null,{"$f":"IF(AND(J99=\"\",K99=\"\"),\"\",\"x\")","v":""},null,null,{"$f":"IF(AND(M99=\"\",N99=\"\"),\"\",\"x\")","v":""},"x","x",{"$f":"IF(AND(P99=\"\",Q99=\"\"),\"\",\"x\")","v":"x"},"x","x",{"$f":"IF(AND(S99=\"\",T99=\"\"),\"\",\"x\")","v":"x"}]
[null,"3.2.2 Sie lagern die Furniere korrekt unter Beachtung der klimatischen Bedingungen. ","- Furnier fachgerecht lagern","x",null,"x",null,null,null,null,null,"",null,null,"","x","x","x","x","x","x"]
[null,"3.2.3 Sie wenden die entsprechenden Klebstoffe unter Berücksichtigung der Herstellerangaben (technische Merk- sowie Sicherheitsdatenblätter) an. ","- Furnierklebstoffe gemäss Herstellerangaben fachgerecht anwenden","x",null,null,null,null,null,null,null,"",null,null,"","x","x","x","x","x","x"]
[null,"3.3 Oberfläche behandeln","3.3 Oberfläche behandeln","x","x","x",null,null,null,null,null,null,null,null,null,"x","x",null,"x","x"]
[null,"3.3.1 Sie wenden die Produkte (z.B. Lacke, Beizen, Farben, Wachse) unter den Gesichtspunkten der Eigenschaften, Verwendungszwecke, Umweltverträglichkeit und Verarbeitungsrichtlinien (inkl. technische Merk- sowie Sicherheitsdatenblätter) an. ","- Lacke, Beizen, Farben, Wachse gemäss Herstellerangaben fachgerecht anwenden","x",null,"x",null,null,null,null,null,{"$f":"IF(AND(J103=\"\",K103=\"\"),\"\",\"x\")","v":""},null,null,{"$f":"IF(AND(M103=\"\",N103=\"\"),\"\",\"x\")","v":""},null,"x",{"$f":"IF(AND(P103=\"\",Q103=\"\"),\"\",\"x\")","v":"x"},"x","x",{"$f":"IF(AND(S103=\"\",T103=\"\"),\"\",\"x\")","v":"x"}]
[null,"3.3.2 Sie wenden dem Endprodukt entsprechende Arbeitsgänge an (z.B. Entharzen, Wässern, Egalisieren, Bleichen). ","- Vorbehandlungen (Entharzen, Wässern, Egalisieren, Bleichen usw.) durchführen","x",null,"x",null,null,null,null,null,"",null,null,"",null,"x","x","x","x","x"]
[null,"3.3.3 Sie wenden vorgemischte Farben an. ","- vorgemischte Farben anwenden","x",null,"x",null,null,null,null,null,"",null,null,"",null,"x","x","x","x","x"]
[null,"3.3.4 Sie wenden betriebsübliche Applikationen an. ","- betriebsübliche Auftragsarten (Spritzen, Rollen, Streichen, Giessen usw.) anwenden","x",null,"x",null,null,null,null,null,"",null,null,"",null,"x","x","x","x","x"]
[null,"3.3.5 Sie wenden die persönliche Schutzausrüstung und die Schutzvorrichtungen konsequent und korrekt an. ","- persönliche Schutzausrüstung und Schutzvorrichtungen anwenden","x","x","x",null,null,null,null,null,"",null,null,"",null,"x","x","x","x","x"]
[null,"4 Herstellen von Produkten spezifisch für den Aussenbereich","4 Herstellen von Produkten spezifisch für den Aussenbereich",null,"x",null,null,null,null,null,null,null,null,null,null,"x","x",null,"x","x"]
[null,"4.1 Andere Holzwerkstoffe einsetzen","4.1 Andere Holzwerkstoffe einsetzen",null,"x",null,null,null,null,null,null,null,null,null,null,"x","x",null,"x","x"]
[null,"4.1.1 Sie wenden dem Auftrag entsprechende Baustoffe an (z.B. Metall, Stahl, Kunststoff, Isolierglas, mineralische Werkstoffe, Verbundstoffe) und beachten dabei allfällig vorhandene technische Merk- sowie Sicherheitsdatenblätter. ","- Metall, Kunststoff, Isolierglas, mineralische Werkstoffe, Verbundwerkstoffe verarbeiten",null,"x",null,null,null,null,null,null,{"$f":"IF(AND(J110=\"\",K110=\"\"),\"\",\"x\")","v":""},null,null,{"$f":"IF(AND(M110=\"\",N110=\"\"),\"\",\"x\")","v":""},"x","x",{"$f":"IF(AND(P110=\"\",Q110=\"\"),\"\",\"x\")","v":"x"},"x","x",{"$f":"IF(AND(S110=\"\",T110=\"\"),\"\",\"x\")","v":"x"}]
[null,"4.1.2 Sie wenden dem Auftrag entsprechende Dämm- und Dichtstoffe (z.B. Schaumglas, Hybrid, Dichtungsbänder) gemäss den Verarbeitungsrichtlinien (inkl. technische Merk- und Sicherheitsdatenblätter), sowie unter Berücksichtigung ökologischer Aspekte an. ","- Dämm- Dichtstoffe gemäss Herstellerangaben anwenden",null,"x",null,null,null,null,null,null,"",null,null,"","x","x","x","x","x","x"]
[null,"4.1.3 Sie wenden die dem Auftrag und den Anforderungen entsprechenden Halbfabrikate an (z.B. Rahmenverbreiterungen, Haustürrohlinge). ","- Halbfabrikate (Rahmenverbreiterungen, Haustürrohlinge usw.) verarbeiten",null,"x",null,null,null,null,null,null,"",null,null,"","x","x","x","x","x","x"]
[null,"4.2 Materialien belegen","4.2 Materialien belegen",null,"x","x","x",null,null,null,null,null,null,null,null,"x","x",null,"x","x"]
[null,"4.2.1 Sie wenden die entsprechenden Klebstoffe unter Berücksichtigung der Herstellerangaben (technische Merk- sowie Sicherheitsdatenblätter) an. ","- Klebstoffe zum Belegen gemäss Herstellerangaben anwenden",null,"x","x","x",null,null,null,null,{"$f":"IF(AND(J114=\"\",K114=\"\"),\"\",\"x\")","v":""},null,null,{"$f":"IF(AND(M114=\"\",N114=\"\"),\"\",\"x\")","v":""},"x","x",{"$f":"IF(AND(P114=\"\",Q114=\"\"),\"\",\"x\")","v":"x"},"x","x",{"$f":"IF(AND(S114=\"\",T114=\"\"),\"\",\"x\")","v":"x"}]
[null,"4.2.2 Sie wenden die erforderlichen Pressverfahren unter Berücksichtigung des Aussenklimas sicher und effizient an. ","- Pressverfahren zum Belegen anwenden",null,"x","x","x",null,null,null,null,"",null,null,"","x","x","x","x","x","x"]
[null,"4.3 Werkteile zusammenbauen","4.3 Werkteile zusammenbauen",null,"x","x",null,null,null,null,null,null,null,null,null,"x","x",null,"x","x"]
[null,"4.3.1 Sie beschreiben die Anforderungen an die Werkteile (z.B. Fenster, Aussentüren, Tore). ","- Anforderungen an die zu bearbeitenden Werkteile kennen",null,"x","x",null,null,null,null,null,{"$f":"IF(AND(J117=\"\",K117=\"\"),\"\",\"x\")","v":""},null,null,{"$f":"IF(AND(M117=\"\",N117=\"\"),\"\",\"x\")","v":""},null,null,{"$f":"IF(AND(P117=\"\",Q117=\"\"),\"\",\"x\")","v":""},"x","x",{"$f":"IF(AND(S117=\"\",T117=\"\"),\"\",\"x\")","v":"x"}]
[null,"4.3.2 Sie wenden nach einer entsprechenden Instruktion / Ausbildung die betriebsüblichen Verbindungstechniken an. ","- Verbindungen (Dübel, Zapfen, Federn usw.) anwenden ",null,"x","x",null,null,null,null,null,"",null,null,"","x","x","x","x","x","x"]
[null,"4.3.3 Sie wenden die entsprechenden Klebstoffe unter Berücksichtigung der Herstellerangaben (technische Merk- sowie Sicherheitsdatenblätter) an. ","- Klebstoffe zum Belegen gemäss Herstellerangaben anwenden",null,"x","x",null,null,null,null,null,"",null,null,"","x","x","x","x","x","x"]
[null,"4.3.4 Sie wenden verschiedene, effiziente Spannverfahren an (z.B. Rahmenpresse, Durchlaufpresse, Korpuspresse, Handzwingen). ","- Verleimarbeiten (mithilfe von Rahmen-, Korpuspresse, Handzwingen usw.) ausführen",null,"x","x",null,null,null,null,null,"",null,null,"","x","x","x","x","x","x"]
[null,"4.3.5 Sie wenden die persönliche Schutzausrüstung und die Schutzvorrichtungen konsequent und korrekt an. ","- persönliche Schutzausrüstung und Schutzvorrichtungen anwenden",null,"x","x",null,null,null,null,null,"",null,null,"","x","x","x","x","x","x"]
[null,"4.4 Beschläge anbringen","4.4 Beschläge anbringen",null,"x","x","x",null,null,null,null,null,null,null,null,"x","x",null,"x","x"]
[null,"4.4.1 Sie montieren die Beschläge gemäss den Herstellervorgaben, Planvorgaben und betrieblichen Normen (z.B. Fensterbeschläge, Türschliesser,  Haustürbänder). ","- Beschläge (Fensterbeschläge, Türschliesser, Haustürbänder usw.) gemäss Hersteller- und Planvorgaben montieren",null,"x","x",null,null,null,null,null,{"$f":"IF(AND(J123=\"\",K123=\"\"),\"\",\"x\")","v":""},null,null,{"$f":"IF(AND(M123=\"\",N123=\"\"),\"\",\"x\")","v":""},"x","x",{"$f":"IF(AND(P123=\"\",Q123=\"\"),\"\",\"x\")","v":"x"},"x","x",{"$f":"IF(AND(S123=\"\",T123=\"\"),\"\",\"x\")","v":"x"}]
[null,"4.4.2 Sie wenden die Einbauvorschriften und Verarbeitungsrichtlinien an. ","- Einbauvorschriften einhalten",null,"x",null,null,null,null,null,null,"",null,null,"","x","x","x","x","x","x"]
[null,"4.4.3 Sie wenden die Dichtungen gemäss Verarbeitungsrichtlinien an (z.B. Vulkanisieren, Schweissen, Kleben). ","- Vulkanisieren, Schweissen, Kleben von Dichtungen ausführen",null,"x",null,null,null,null,null,null,"",null,null,"","x","x","x","x","x","x"]
[null,"4.4.4 Sie bearbeiten mit dem Schmied zusammen Reifen. ","- Reifen bearbeiten",null,null,"x",null,null,null,null,null,"",null,null,"",null,"x","x","x","x","x"]
[null,"4.4.5 Sie stellen anhand vorgegebener Montageinformationen Bohrlehre, Bindung und Bohrer bereit. ","- Montage von Bindungen und Platten",null,null,null,"x",null,null,null,null,"",null,null,"",null,"x","x","x","x","x"]
[null,"4.4.6 Sie montieren Bindungen und Platten unter Beachtung des Montagepunktes und weiterer Vorgaben. ","- Bindungen und Platten fachgerecht montieren",null,null,null,"x",null,null,null,null,"",null,null,"",null,"x","x","x","x","x"]
[null,"4.4.7 Sie testen Bindungen gemäss dem BfU-Wert.","- Bindungen gemäss BfU-Wert testen",null,null,null,"x",null,null,null,null,"",null,null,"",null,"x","x","x","x","x"]
[null,"4.5 Oberfläche behandeln","4.5 Oberfläche behandeln",null,"X","X","X",null,null,null,null,null,null,null,null,null,"x",null,"x","x"]
[null,"4.5.1 Sie wenden die Produkte (z.B. Lacke, Öle) dem Verwendungszweck sowie den Verarbeitungsrichtlinien (technische Merk- sowie Sicherheitsdatenblätter) und der Umweltverträglichkeit entsprechend an. ","- Lacke, Farben, Öle gemäss Herstellerangaben fachgerecht anwenden",null,"x","x","x",null,null,null,null,{"$f":"IF(AND(J131=\"\",K131=\"\"),\"\",\"x\")","v":""},null,null,{"$f":"IF(AND(M131=\"\",N131=\"\"),\"\",\"x\")","v":""},null,"x",{"$f":"IF(AND(P131=\"\",Q131=\"\"),\"\",\"x\")","v":"x"},"x","x",{"$f":"IF(AND(S131=\"\",T131=\"\"),\"\",\"x\")","v":"x"}]
[null,"4.5.2 Sie wenden betriebsübliche Applikationen an (z.B. Tauchen, Fluten, Spritzen, Imprägnieren). ","- betriebsübliche Auftragsarten (Tauchen, Fluten, Spritzen, Imprägnieren usw.) anwenden",null,"x","x","x",null,null,null,null,"",null,null,"",null,"x","x","x","x","x"]
[null,"4.5.3 Sie entwerfen verschiedene Gestaltungen von Ski. ","- Ski gestalten",null,null,null,"x",null,null,null,null,"",null,null,"",null,null,"","x","x","x"]
[null,"4.5.4 Sie wenden die Siebdrucktechnologie des Betriebes an und beachten dafür die technischen Merk- sowie Sicherheitsdatenblätter für Siebdruckfarben.","- betriebsübliche Siebdrucktechnologie anwenden\n- Siebdruckfarben gemäss Herstellerangaben anwenden",null,null,null,"x",null,null,null,null,"",null,null,"",null,"x","x","x","x","x"]
[null,"4.5.5 Sie wenden betriebsübliche Applikationen an (z.B. Sublimation, Digitaldruck). ","- betriebsübliche Applikationen anwenden",null,null,null,"x",null,null,null,null,"",null,null,"",null,"x","x","x","x","x"]
[null,"4.5.6 Sie wenden die persönliche Schutzausrüstung und die Schutzvorrichtungen konsequent und korrekt an. ","- persönliche Schutzausrüstung und Schutzvorrichtungen anwenden",null,null,null,"x",null,null,null,null,"",null,null,"",null,"x","x","x","x","x"]
[null,"4.6 Skirohlinge paaren richten","4.6 Skirohlinge paaren richten",null,null,null,"x",null,null,null,null,null,null,null,null,null,"x",null,"x","x"]
[null,"4.6.1 Sie ordnen unter Berücksichtigung der Qualitätssicherung die einzelnen Skier zu Paaren zu. ","- Skirohlinge fachgerecht paaren",null,null,null,"x",null,null,null,null,{"$f":"IF(AND(J138=\"\",K138=\"\"),\"\",\"x\")","v":""},null,null,{"$f":"IF(AND(M138=\"\",N138=\"\"),\"\",\"x\")","v":""},null,"x",{"$f":"IF(AND(P138=\"\",Q138=\"\"),\"\",\"x\")","v":"x"},"x","x",{"$f":"IF(AND(S138=\"\",T138=\"\"),\"\",\"x\")","v":"x"}]
[null,"4.6.2 Sie korrigieren die ausgewählten Skipaare.","- Skipaare korrigieren",null,null,null,"x",null,null,null,null,"",null,null,"",null,"x","x","x","x","x"]
[null,"4.6.3 Sie testen die Vorspannhöhe und den Seitenverzug der Paare. ","- Seitenverzug und Vorspannhöhe kontrollieren",null,null,null,"x",null,null,null,null,"",null,null,"",null,"x","x","x","x","x"]
[null,"4.6.4 Sie beurteilen das Schliessen bei gegenseitiger Auflage der Laufflächen unter Berücksichtigung der Qualitätssicherung. ","- Schliessen der Ski auf Qualität kontrollieren",null,null,null,"x",null,null,null,null,"",null,null,"",null,"x","x","x","x","x"]
[null,"5 Ausführen von Montagearbeiten","5 Ausführen von Montagearbeiten","x","x","x","x",null,null,null,null,null,"x","x",null,"x","x",null,"x","x"]
[null,"5.1 Montagearbeiten ausführen","5.1 Montagearbeiten ausführen","x","x","x","x",null,null,null,null,null,"x","x",null,"x","x",null,"x","x"]
[null,"5.1.1 Sie wenden gegenüber Kunden ein gepflegtes und sauberes Auftreten an. ","- gepflegt und sauber beim Kunden Auftreten","x","x","x","x",null,null,null,null,{"$f":"IF(AND(J144=\"\",K144=\"\"),\"\",\"x\")","v":""},"x","x",{"$f":"IF(AND(M144=\"\",N144=\"\"),\"\",\"x\")","v":"x"},"x","x",{"$f":"IF(AND(P144=\"\",Q144=\"\"),\"\",\"x\")","v":"x"},"x","x",{"$f":"IF(AND(S144=\"\",T144=\"\"),\"\",\"x\")","v":"x"}]
[null,"5.1.2 Sie setzen die Arbeitssicherheit und den Gesundheitsschutz auf dem Weg und beim Kunden um (z.B. Transportsicherung/Fahrzeuge, Gerüste, Leitern, Staubwände, Schutz des Produkts, Asbest, Absturzsicherung). ","- Transportsicherungen anwenden\n- Produkte richtig schützen\n- Hilfsmittel (Leitern, Staubwände, Absturzsicherung usw.) fachgerecht anwenden\n- mit Asbest richtig umgehen","x","x","x",null,null,null,null,null,"","x","x","x","x","x","x","x","x","x"]
[null,"5.1.3 Sie gliedern den Arbeitsablauf, wählen die Hilfsmittel und legen dabei grossen Wert auf die Ordnung. ","- Arbeitsabläufe erstellen\n- Ordnung halten","x","x","x",null,null,null,null,null,"","x","x","x","x","x","x","x","x","x"]
[null,"5.1.4 Sie setzen die Baustellenorganisation effizient und unter Berücksichtigung des Auftrages um, d.h. befolgen Arbeitsanweisungen und Sicherhetsregeln. ","- Baustellenorganisation umsetzen, dabei Sichereheitsregeln beachten","x","x","x",null,null,null,null,null,"","x","x","x","x","x","x","x","x","x"]
[null,"5.1.5 Sie interpretieren die Baupläne und Montageunterlagen. ","- Montageunterlagen und Baupläne interpretieren\n","x","x","x",null,null,null,null,null,"","x","x","x","x","x","x","x","x","x"]
[null,"5.1.6 Sie wenden verschiedene Befestigungstechniken (z.B. Dübel, Schrauben, Bohrhammer) an. ","- Befestigungstechniken anwenden (z. B. Dübel, Schrauben, Bohrhammer, etc. ) ","x","x","x",null,null,null,null,null,"","x","x","x","x","x","x","x","x","x"]
[null,"5.1.7 Sie setzen die Montage um, indem sie die Schnittstellen zu verschiedenen Bauhandwerkern berücksichtigen. ","- selbstständiges Montieren von Produkten\n- Schnittstellen zu anderen Handwerkern berücksichtigen","x","x",null,null,null,null,null,null,"","x","x","x","x","x","x","x","x","x"]
[null,"5.1.8 Sie erstellen Abnahmeprotokolle unter Berücksichtigung der Funktionskontrolle. ","- erstellen von Abnahmeprotokollen","x","x","x",null,null,null,null,null,"","x","x","x","x","x","x","x","x","x"]
[null,"5.2 Montagearbeiten im Innenraum","5.2 Montagearbeiten im Innenraum","x",null,null,null,null,null,null,null,null,"x","x",null,"x","x",null,"x","x"]
[null,"5.2.1 Sie analysieren Bauanschlüsse unter Berücksichtigung der unterschiedlichen bauphysikalischen Bedingungen (z.B. Trittschall, Körperschall). ","- Bauanschlüsse beachten in Bezug auf Trittschall und Körperschall\n- begleiten des AVOR","x",null,null,null,null,null,null,null,{"$f":"IF(AND(J153=\"\",K153=\"\"),\"\",\"x\")","v":""},null,null,{"$f":"IF(AND(M153=\"\",N153=\"\"),\"\",\"x\")","v":""},"x","x",{"$f":"IF(AND(P153=\"\",Q153=\"\"),\"\",\"x\")","v":"x"},"x","x",{"$f":"IF(AND(S153=\"\",T153=\"\"),\"\",\"x\")","v":"x"}]
[null,"5.2.2 Sie führen einfache Montagearbeiten anhand der betrieblichen Vorgaben aus (z.B. Schränke, Innentüren, Küchen, Innenausbauten) und beachten dabei die Arbeitssicherheit und den Gesundheitsschutz. ","- einfache Montagearbeiten selbstständig durchführen (z. B. Innentüren, Küchen, Innenausbauten, etc.)\n","x",null,null,null,null,null,null,null,"","x","x","x","x","x","x","x","x","x"]
[null,"5.3 Montagearbeiten aussen","5.3 Montagearbeiten aussen",null,"x",null,null,null,null,null,null,null,"x","x",null,"x","x",null,"x","x"]
[null,"5.3.1 Sie analysieren Bauanschlüsse unter Berücksichtigung der unterschiedlichen bauphysikalischen Bedingungen (z.B. Feuchte, Wärme, Schall). ","- Bauanschlüsse beachten in Bezug auf Feuchte, Wärme, Schall\n- begleiten des AVOR",null,"x",null,null,null,null,null,null,{"$f":"IF(AND(J156=\"\",K156=\"\"),\"\",\"x\")","v":""},null,null,{"$f":"IF(AND(M156=\"\",N156=\"\"),\"\",\"x\")","v":""},"x","x",{"$f":"IF(AND(P156=\"\",Q156=\"\"),\"\",\"x\")","v":"x"},"x","x",{"$f":"IF(AND(S156=\"\",T156=\"\"),\"\",\"x\")","v":"x"}]
[null,"5.3.2 Sie führen Montagearbeiten anhand der betrieblichen Vorgaben aus, berücksichtigen dabei die bauphysikalischen Situationen (z.B. Fenster, Haustüren, Dachfenster) und beachten dabei die Arbeitssicherheit und den Gesundheitsschutz. ","- einfache Montagearbeiten selbstständig durchführen z. B. Fenster, Haustüren und Dachfenster\n- Arbeitssicherheit und Gesundheitsschutz einhalten",null,"x",null,null,null,null,null,null,"","x","x","x","x","x","x","x","x","x"]
[null,"5.4 Servicearbeiten und Reparaturen ausführen und Verkauf tätigen","5.4 Servicearbeiten und Reparaturen ausführen und Verkauf tätigen","x","x","x","x",null,null,null,null,null,"x","x",null,"x","x",null,"x","x"]
[null,"5.4.1 Sie beraten in ihrem Aufgabenbereich Kunden zu kleineren Arbeiten. ","- Kunden zu kleinen Arbeiten beraten","x","x","x","x",null,null,null,null,{"$f":"IF(AND(J159=\"\",K159=\"\"),\"\",\"x\")","v":""},"x","x",{"$f":"IF(AND(M159=\"\",N159=\"\"),\"\",\"x\")","v":"x"},"x","x",{"$f":"IF(AND(P159=\"\",Q159=\"\"),\"\",\"x\")","v":"x"},"x","x",{"$f":"IF(AND(S159=\"\",T159=\"\"),\"\",\"x\")","v":"x"}]
[null,"5.4.2 Sie führen Servicearbeiten und Reparaturen aus. ","- Servicearbeiten und Reparaturen ausführen","x","x","x",null,null,null,null,null,"","x","x","x","x","x","x","x","x","x"]
[null,"5.4.3 Sie analysieren den Zustand von Skiern und die Sinnhaftigkeit von Reparaturen oder Servicearbeiten.","- Zustand von Skiern beurteilen",null,null,null,"x",null,null,null,null,{"$f":"IF(AND(J161=\"\",K161=\"\"),\"\",\"x\")","v":""},null,null,"",null,"x","x","x","x","x"]
[null,"5.4.4 Sie führen Servicearbeiten und Reparaturen sicher und effizient aus. ","- Service- und Reparaturarbeiten ausführen",null,null,null,"x",null,null,null,null,"",null,null,"",null,"x","x","x","x","x"]
[null,"5.4.6 Sie wenden ihre Verkaufsargumente bei Kunden an. ","- Verkaufsgespräche führen",null,null,null,"x",null,null,null,null,"",null,null,"",null,"x","x","x","x","x"]
[]
[null,null,"Begleitende Massnahmen der Arbeitssicherheit und des Gesundheitsschutzes","x","x","x","x",null,null,"x","x","x","x","x","x","x","x","x","x","x","x"]
["Gefährliche Arbeiten","Gefahren","Präventionsthemen für die Schulung / Ausbildung, Anleitung und Überwachung","x","x","x","x","Zeitpunkt der \nSchulung / Ausbildung","Eingeführt am\nDatum/Visum",{"$f":"J9&\" \"&J8","v":"1. Semester"},{"$f":"K9&\" \"&K8","v":"2. Semester"},"1. Lehrjahr","3. Semester","4. Semester","2. Lehrjahr","5. Semester","6. Semester","3 Lehrjahr","7. Semester","8. Semester","4. Lehrjahr"]
[null,null,"Hilfsmittel und Unterlagen","x","x","x","x","x","x","x","x","x","x","x","x","x","x","x","x","x","x"]
[null,null,null,"x","x","x","x","x","x","Überwachung \nneA = nach erfolgter Ausbildung"]
["Arbeiten mit repetitiver \nBelastung oder \nungünstiger Haltung\n(z. B. bei Bodenverlege-\narbeiten oder Decken-montagearbeiten)","• Zwangshaltungen, ungünstige Körperhaltungen und -bewegungen (Rückenschäden usw.)\n• Überlastung von Körperteilen (Sehnenscheidenentzündungen, Erkrankung der Schleimbeutel, usw.)","Ergonomie am Arbeitsplatz\nArbeitstechnik / Einsatz von Hilfsmitteln\n• Ergonomisches Einrichten des Arbeitsplatzes\n• Tätigkeitswechsel / Erholungsphasen vorsehen\n• Einsatz von Hilfsmitteln und PSA (Knieschoner, Montagehilfen, etc.)\n• VSSM-Ordner Werkstatt Kap. 1.3: \"Arbeitsplatz\"","x","x","x","x","1. Lehrjahr",null,"Ständig oder \nhäufig neA","Ständig oder \nhäufig neA","Ständig oder \nhäufig neA","Gelegentlich","Gelegentlich","Gelegentlich","Gelegentlich","Gelegentlich","Gelegentlich","Gelegentlich","Gelegentlich","Gelegentlich"]
["Manuelles Heben, Tra-gen und Verschieben von \nLasten über den in ArGV5 festgelegten Richtwerten (z. B. beim Abladen, \nMontagearbeiten) ","• Überlastung des Bewegungsapparates (Wachstumsstörungen usw.)\n• Fehlhaltungen (Rückenleiden usw.)\n• Verletzung durch Quetschen (Fussverletzungen, usw.)\n","Körperschonender Umgang mit Lasten.\nArbeitstechnik / Einsatz von Hilfsmitteln.\n• EKAS 6245: \"Lastentransport von Hand\"\n• VSSM-Ordner Werkstatt Kap. 1.1: \"Lasten sicher von Hand transportieren\"\n• Wegleitung zu ArGV3: Art. 25","x","x","x","x","1. Lehrjahr",null,"Ständig oder \nhäufig neA","Ständig oder \nhäufig neA","Ständig oder \nhäufig neA","Gelegentlich","Gelegentlich","Gelegentlich","Gelegentlich","Gelegentlich","Gelegentlich","Gelegentlich","Gelegentlich","Gelegentlich"]
["Transport, Lagerung und \nUmgang von \nHolzwerkstoffen und Bauprodukten\n","• Mechanische Verletzungen durch Spiesse, sich schneiden, getroffen werden\n• Erdrückt werden durch kippende oder stürzende Waren / Stapel\n• Sensibilisierung der Haut und Atemwege\n\n","Sichere Lagerung und Umgang mit Holzwerkstoffen und Bauprodukten.\n• Herstellerangaben / Produktedatenblätter\n• Einsatz der persönlichen Schutzausrüstung\n• VSSM-Ordner Werkstatt Kap. 1.1: \"Arbeitssicherheit und Gesundheitsschutz\"\n• VSSM-Ordner Werkstatt Kap. 1.7: \"Lagerung und Entsorgung\"","x","x","x","x","1. - 4.\nLehrjahr",null,"Ständig oder \nhäufig neA","Ständig oder \nhäufig neA","Ständig oder \nhäufig neA","Gelegentlich","Gelegentlich","Gelegentlich","Gelegentlich","Gelegentlich","Gelegentlich","Gelegentlich","Gelegentlich","Gelegentlich"]
["Heben und Verschieben von Lasten mit Hebe-\ngeräten inkl. Anschlagen der Lasten. \n(z. B. Deichselstapler, \"Ameise“)\n(exklusive Stapler)","• Erdrückt werden, getroffen werden von Waren, sich einklemmen, quetschen usw.\n• Fussverletzungen durch grosse Gewichte\n","Lasten sicher handhaben mit Hebegeräten\n• Herstellerangaben / Betriebsanleitung\n• VSSM-Ordner Werkstatt Kap. 8.3: \"Transport zur Baustelle\"\n• Suva MB 88801: \"Lerneinheit. Anschlagen von Lasten\"\n• Suva MB 88802: \"Lerneinheit. Wahl der Anschlagmittel\"\n• Suva CL 67017: \"Anschlagmittel, Anbindemittel\"\n• Suva CL 67046: \"Deichselstapler“","x","x","x","x","1. - 2.\nLehrjahr",null,"Ständig oder \nhäufig neA","Ständig oder \nhäufig neA","Ständig oder \nhäufig neA","Gelegentlich","Gelegentlich","Gelegentlich","Gelegentlich","Gelegentlich","Gelegentlich","Gelegentlich","Gelegentlich","Gelegentlich"]
["Anschlagen von Lasten an Kranen\n\n(Krane im Geltungsbe-reich der Kranverord-nung =\nSonderkompetenz sofern \nbetrieblich erforderlich)","•\tErdrückt werden, getroffen werden von Waren, sich einklemmen, quet-schen usw.\n•\tFussverletzungen durch grosse Gewichte","Lasten sicher an Kranen anschlagen\n•\tSuva FS 33099\n•\tSuva MB 88801: \"10 lebenswichtige Regeln für das Anschlagen von Lasten.\"\n•\tSuva CL 67017: \"Anschlagmittel\"\n•\tSuva CL 67198: \"Lastaufnahmemittel“\n•\tDer schriftliche Nachweis für die geforderte Ausbildung muss vorhanden sein.","x","x","x","x","Ausbildung vor dem ersten Einsatz!",null,"Ständig","Ständig","Ständig","Ständig","Ständig",null,"Häufig","Häufig","Häufig","Häufig","Häufig"]
["Bedienung von \nIndustriekranen\n\n(Krane im Geltungsbe-reich der Kranverord-nung =\nSonderkompetenz sofern \nbetrieblich erforderlich)","•\tGetroffen werden von pendelnder, umkippender oder abstürzender Last\n•\tVerletzen von Händen und Füssen beim Hochziehen und Absetzen der Last\n•\tEingeklemmt werden zwischen Kran und Gebäudeteilen","Sichere Bedienung von Industriekranen\n•\tHerstellerangaben / Betriebsanleitung\n•\tSuva FS 33081\n•\tSuva CL 67158: \"Hebezeuge\"\n•\tSuva CL 67159: \"Krane in Industrie und Gewerbe\"\n•\tDer schriftliche Nachweis für die geforderte Ausbildung muss vorhanden sein.","x","x","x","x","Ausbildung vor dem ersten Einsatz!",null,"Ständig","Ständig","Ständig","Ständig","Ständig",null,"Häufig","Häufig","Häufig","Häufig","Häufig"]
["Arbeiten mit Handwerkzeugen und Handmaschinen","• Sich schneiden, stechen, quetschen usw.\n• Schädigung des Gehörs\n• Augenverletzungen\n• Getroffen werden von wegfliegenden Werkstückteilen\n• Schädigung infolge starker Vibrationen\n","Sicherer Umgang mit Arbeitsmitteln\n• Herstellerangaben / Betriebsanleitung\n• Einsatz der persönlichen Schutzausrüstung\n• VSSM-Ordner Werkstatt Kap. 1.1: \"Arbeitssicher-heit und Gesundheitsschutz\"\n• Suva MB 44015: \"Handwerkzeuge\"\n• VSSM-Ordner Werkstatt Kap. 4: \"Handmaschi-nen\"\n• VSSM Videos Werkstatt: \"Handmaschinen\"","x","x","x","x","1. - 2.\nLehrjahr",null,"Ständig oder \nhäufig neA","Ständig oder \nhäufig neA","Ständig oder \nhäufig neA","Gelegentlich","Gelegentlich","Gelegentlich","Gelegentlich","Gelegentlich","Gelegentlich","Gelegentlich","Gelegentlich","Gelegentlich"]
["Arbeiten mit stationären \nHolzbearbeitungs-\nmaschinen\n(Normalbetrieb mit Einrichtarbeiten)","• Sich schneiden, bohren, quetschen usw.\n• Eingezogen werden\n• Schädigung des Gehörs\n• Augenverletzungen\n• Getroffen werden von wegfliegenden Werkstückteilen","Holz sicher und effizient bearbeiten.\nMaschinen und Einrichtungen sicher einsetzen.\n• Herstellerangaben / Betriebsanleitung\n• Einsatz der persönlichen Schutzausrüstung\n• VSSM-Ordner \"Holz sicher und effizient bearbeiten\" inkl. Filme auf www.suva.ch/holzbearbeitung","x","x","x","x","1. - 4.\nLehrjahr",null,"Ständig oder \nhäufig neA","Ständig oder \nhäufig neA","Ständig oder \nhäufig neA","Häufig","Häufig","Häufig","Häufig","Häufig","Häufig","Gelegentlich","Gelegentlich","Gelegentlich"]
["Ausführen von \nInstandhaltungsarbeiten und einfache Störungsbehebung an Maschinen\n","• Sich schneiden, bohren, quetschen usw.\n• Eingezogen werden\n• Ungesicherte, gespeicherte Energien\n• Lärm\n• Augenverletzungen","Instandhaltung und Störungsbehebung sicher ausführen.\n• Herstellerangaben / Betriebsanleitung\n• Einsatz der persönlichen Schutzausrüstung\n• VSSM-Ordner \"Holz sicher und effizient bearbeiten\" inkl. Filme auf www.suva.ch/holzbearbeitung\n• Suva MB 88813: \"Acht lebenswichtige Regeln für die Instandhaltung\" ","x","x","x","x","2. - 4.\nLehrjahr",null,null,null,null,"Ständig oder\nhäufig neA","Ständig oder\nhäufig neA","Ständig oder\nhäufig neA","Häufig","Häufig","Häufig","Gelegentlich","Gelegentlich","Gelegentlich"]
["Arbeit in mit Holzstaub \nangereicherter Luft\n","• Atemwegsbeschwerden / -erkrankungen\n• Sensibilisierung gegenüber Holzstaub und Entwicklung von Allergien (z. B. Erhöhtes Krebsrisiko durch Holzarten wie Buche, Eiche oder Exotenhölzer)\n• Brand- und Explosionsrisiko\n\n","Sensibilisierung und Schutzmassnahmen betreffend Holzstaub.\n• VSSM-Ordner Holz sicher und effizient bearbeiten Kap. 1.3: \"Absaugtechnik\"\n• VSSM-Ordner Werkstatt Kap. 1.1: \"Arbeitssicherheit und Gesundheitsschutz / Staubsaugen statt abblasen\"\n• Suva CL 67132: \"Explosionsrisiken\"\n","x","x","x","x","1. Lehrjahr",null,"Ständig oder \nhäufig neA","Ständig oder \nhäufig neA","Ständig oder \nhäufig neA","Gelegentlich","Gelegentlich","Gelegentlich","Gelegentlich","Gelegentlich","Gelegentlich","Gelegentlich","Gelegentlich","Gelegentlich"]
["Arbeiten mit gesundheits-gefährdenden Stoffen\n(z. B. bei Arbeiten bei denen Stoffkategorien mit H-Sätzen zum Einsatz kommen wie in der Oberflächenbehandlung: Isozyanathärter, 2-K Lacke und Härter mit organischen Peroxiden, Verdünner, Öle, Wachse, Laugen, Seifen, \nLasuren, Pflege- und \nRetuschiermittel, Patina, Holzschutzmittel usw.; in der Verbindungstechnik und bei Dichtungsarbeiten: PUR-Leime, PUR-Schäume, Formaldehyd usw.; sowie beim Schleifen dieser Stoffe)","• Reizungen / Sensibilisierung von\n - Augen\n - Haut\n - Atemwegen\n - Schleimhäuten\n• Allergien / Ekzeme\n• Brand- und Explosionsgefahr \n","Sensibilisierung und Schutzmassnahmen betreffend gesundheitsgefährdenden Stoffen\n• Herstellerangaben / Sicherheitsdatenblätter\n• Absaug- und Lüftungsmassnahmen / EX-Schutz\n• Einsatz der persönlichen Schutzausrüstung\n• VSSM-Ordner Werkstatt Kap. 1.7: “Lagerung und Entsorgung“\n• VSSM-Ordner Werkstatt Kap. 7.4: \"Überzüge und Applikationen\"\n• Suva MB 44013: “Chemikalien im Baugewerbe“\n• www.cheminfo.ch (z. B. Gefahrensymbole)\n• sicherer Umgang mit Holzschutzmittel\n\n","x","x","x","x","1. - 4.\nLehrjahr",null,"Ständig oder \nhäufig neA","Ständig oder \nhäufig neA","Ständig oder \nhäufig neA","Häufig","Häufig","Häufig","Gelegentlich","Gelegentlich","Gelegentlich","Gelegentlich","Gelegentlich","Gelegentlich"]
["Kontakt mit asbesthaltigem Material bei Rückbauarbei-ten oder bei Renovations-arbeiten, insbesondere bei Glaser-\narbeiten (z. B. Fensterkitt)","• Einatmen von freigesetzten Asbestfasern (Krebserkrankungen usw.)","Identifikation und Umgang mit asbesthaltigen Produkten.\n• Suva MB 84043: \"Asbest erkennen, beurteilen und richtig handeln. Lebenswichtige Regeln für das Schreinergewerbe.\"\n• www.suva.ch/asbest\n• VSSM-Ordner Werkstatt Kap. 8.5: \"Einglasarbeiten\"","x","x","x","x","1. Lehrjahr",null,"Ständig","Ständig","Ständig","Ständig","Ständig","Ständig","Ständig","Ständig","Ständig","Häufig","Häufig","Häufig"]
["Arbeiten ohne örtlich festen Arbeitsplatz\n(z. B. Montagearbeiten auf Baustellen)","• Gefährdungen durch sich ständig verändernde Arbeitsumgebungsbedingungen\n","Sicherheit auf Baustellen und bei Montagearbeiten\n• Bauarbeitenverordnung / BauAV\n• VSSM-Ordner Werkstatt Kap. 1.1: \"Arbeitssicherheit und Gesundheitsschutz\"\n• VSSM-Ordner Werkstatt Kap. 8: \"Montage\"\n• Suva MB 88818: \"Zehn lebenswichtige Regeln für den Holzbau\"","x","x","x","x","1. - 2.\nLehrjahr",null,"Ständig oder \nhäufig neA","Ständig oder \nhäufig neA","Ständig oder \nhäufig neA","Gelegentlich","Gelegentlich","Gelegentlich","Gelegentlich","Gelegentlich",null,null,null,"Gelegentlich"]
["Arbeiten in der Höhe mit \nAbsturzrisiko\n(z. B. beim Arbeiten mit \nLeitern, Fassaden- und Rollgerüsten im Betrieb sowie auf der Baustelle)\n","• Sturz aus der Höhe\n• Verschieben, Kippen des Arbeitsmittels\n\n","Leitern sicher einsetzen.\n• VSSM-Ordner Werkstatt Kap. 8.4: \"Montagearbeiten\"\n• Suva FP 84070: \"Wer sagt 12x Ja? Sicher auf die Anstell- und Bockleiter\"\n• Suva Video 382: \"Willst du auf die Leiter? So geht's weiter!\"\n\nSicheres benutzen / einsetzen von Gerüsten (z. B. Fassadengerüste / Rollgerüste). \n• Suva Info 44077/1: \"Sicheres Fassadengerüst\"\n• VSSM-Ordner Werkstatt Kap. 8.4: \"Montagearbeiten\"","x","x","x","x","1. Lehrjahr",null,"Ständig oder \nhäufig neA","Ständig oder \nhäufig neA","Ständig oder \nhäufig neA","Gelegentlich","Gelegentlich","Gelegentlich","Gelegentlich","Gelegentlich","Gelegentlich","Gelegentlich","Gelegentlich","Gelegentlich"]
["Arbeiten in der Höhe mit \nHubarbeitsbühnen\n\n(Sonderkompetenz sofern betrieblich erforderlich)","• Sturz aus der Höhe\n• Kippen des Arbeitsmittels\n\n(z. B. bei Montagearbeiten von Decken, Fenstermontage)","Sicheres benutzen und einsetzen von Hubarbeitsbühnen\n• Herstellerangaben / Betriebsanleitung\n• Suva CL 67064/1 und CL 67064/2: \"Hubarbeitsbühnen\"\n• Der schriftliche Nachweis für die geforderte Ausbildung muss vorhanden sein","x","x","x","x","Ausbildung vor dem ersten Einsatz",null,"Ständig","Ständig","Ständig","Ständig","Ständig","Ständig","Häufig","Häufig","Häufig","Häufig","Häufig","Häufig"]
["Arbeiten in der Höhe mit der Persönlichen Schutzausrüstung gegen Absturz \n\n(Sonderkompetenz sofern betrieblich erforderlich)","• Sturz aus der Höhe\n\n(z. B. bei der Fenstermontage)","Sicheres benutzen und einsetzen der PSAgA\n• Wenn möglich sind grundsätzlich kollektive Schutzmassnahmen vorzuziehen!\n• Herstellerangaben / Betriebsanleitung\n• Suva MB 84044: \"Acht lebenswichtige Regeln für das Arbeiten mit Anseilschutz\"\n• www.absturzrisiko.ch \n• Der schriftliche Nachweis für die geforderte Ausbildung muss vorhanden sein","x","x","x","x","Ausbildung vor dem ersten Einsatz",null,"Ständig","Ständig","Ständig","Ständig","Ständig","Ständig","Ständig","Ständig","Ständig","Ständig","Ständig","Ständig"]
[]
[null,null,"Lerndokumentation","x","x","x","x","Termin","Datum/\nVisum","1. Semesterx","2. Semesterx","x","3. Semesterx","4. Semesterx","x","5. Semesterx","6. Semesterx","x","7. Semesterx","8. Semesterx","x"]
[null,null,"Ergonomie am Arbeitsplatz - korrekte Höhe der Hobelbank einstellen",{"$f":"IF(COUNTIF($I187:$S187,\"x\")>0,\"x\",\"\")","v":"x"},{"$f":"IF(COUNTIF($I187:$S187,\"x\")>0,\"x\",\"\")","v":"x"},"x","x",null,null,"x",null,{"$f":"IF(AND(J187=\"\",K187=\"\"),\"\",\"x\")","v":"x"},null,null,{"$f":"IF(AND(M187=\"\",N187=\"\"),\"\",\"x\")","v":""},null,null,{"$f":"IF(AND(P187=\"\",Q187=\"\"),\"\",\"x\")","v":""},null,null,{"$f":"IF(AND(S187=\"\",T187=\"\"),\"\",\"x\")","v":""}]
[null,null,null,{"$f":"IF(COUNTIF($I188:$S188,\"x\")>0,\"x\",\"\")","v":""},"","","",null,null,null,null,"",null,null,"",null,null,"",null,null,""]
[null,null,null,"","","","",null,null,null,null,"",null,null,"",null,null,"",null,null,""]
[null,null,null,"","","","",null,null,null,null,"",null,null,"",null,null,"",null,null,""]
[null,null,null,"","","","",null,null,null,null,"",null,null,"",null,null,"",null,null,""]
[null,null,null,"","","","",null,null,null,null,"",null,null,"",null,null,"",null,null,""]
[null,null,null,"","","","",null,null,null,null,"",null,null,"",null,null,"",null,null,""]
[null,null,null,"","","","",null,null,null,null,"",null,null,"",null,null,"",null,null,""]
[null,null,null,"","","","",null,null,null,null,"",null,null,"",null,null,"",null,null,""]
[null,null,null,"","","","",null,null,null,null,"",null,null,"",null,null,"",null,null,""]
[null,null,null,"","","","",null,null,null,null,"",null,null,"",null,null,"",null,null,""]
[null,null,null,"","","","",null,null,null,null,"",null,null,"",null,null,"",null,null,""]
[null,null,null,"","","","",null,null,null,null,"",null,null,"",null,null,"",null,null,""]
[]
[null,null,"überbetriebliche Kurse",null,null,null,null,"Datum Durchführung"]
[]
[]
[]
[]
[null,null,"Besprechung Bildungsbericht",null,null,null,null,"Datum Durchführung"]